[Event "*** SCC Grand Prix: Titled Tuesday Blitz"]
[Site "Chess.com"]
[Date "2020.06.23"]
[Round "3"]
[White "SharapovEvgeny"]
[Black "Gurvich_Vitaly"]
[Result "1/2-1/2"]
[WhiteElo "2373"]
[BlackElo "2546"]
[TimeControl "180+1"]
[EndTime "10:28:30 PDT"]
[Termination "Game drawn by repetition"]

1. e4 {[%clk 0:02:59.3]} 1... c5 {[%clk 0:02:56.4]} 2. Nf3 {[%clk 0:02:58.3]}
2... Nc6 {[%clk 0:02:56.2]} 3. d4 {[%clk 0:02:58.2]} 3... cxd4 {[%clk
0:02:57.1]} 4. Nxd4 {[%clk 0:02:58.2]} 4... e5 {[%clk 0:02:57.7]} 5. Nb5 {[%clk
0:02:57.6]} 5... d6 {[%clk 0:02:57.7]} 6. c4 {[%clk 0:02:56.5]} 6... a6 {[%clk
0:02:56.8]} 7. N5a3 {[%clk 0:02:56]} 7... Be7 {[%clk 0:02:56]} 8. Nc3 {[%clk
0:02:55.6]} 8... f5 {[%clk 0:02:55.4]} 9. exf5 {[%clk 0:02:54.6]} 9... Bxf5
{[%clk 0:02:55.3]} 10. Bd3 {[%clk 0:02:54.3]} 10... Be6 {[%clk 0:02:55.5]} 11.
O-O {[%clk 0:02:53.7]} 11... Nf6 {[%clk 0:02:55.2]} 12. Nc2 {[%clk 0:02:52.6]}
12... O-O {[%clk 0:02:55.2]} 13. Ne3 {[%clk 0:02:52.3]} 13... Nd4 {[%clk
0:02:54.7]} 14. b3 {[%clk 0:02:50.6]} 14... Rc8 {[%clk 0:02:53.8]} 15. Bb2
{[%clk 0:02:49.9]} 15... Qd7 {[%clk 0:02:53.3]} 16. Ne4 {[%clk 0:02:47.8]} 16...
b5 {[%clk 0:02:12.8]} 17. Nxf6+ {[%clk 0:02:46]} 17... Bxf6 {[%clk 0:02:10.6]}
18. Nd5 {[%clk 0:02:43.1]} 18... Bxd5 {[%clk 0:02:08.6]} 19. cxd5 {[%clk
0:02:42.6]} 19... g6 {[%clk 0:02:04.6]} 20. Qd2 {[%clk 0:02:36.7]} 20... Rfe8
{[%clk 0:01:51]} 21. Be4 {[%clk 0:02:35.8]} 21... Rc7 {[%clk 0:01:37.6]} 22.
Rac1 {[%clk 0:02:34.7]} 22... Rec8 {[%clk 0:01:37.2]} 23. Rxc7 {[%clk
0:02:33.1]} 23... Rxc7 {[%clk 0:01:38.1]} 24. Rc1 {[%clk 0:02:28.5]} 24... Rxc1+
{[%clk 0:01:36.4]} 25. Bxc1 {[%clk 0:02:28]} 25... Qc7 {[%clk 0:01:22]} 26. Kf1
{[%clk 0:02:25.2]} 26... a5 {[%clk 0:01:19.2]} 27. Bb2 {[%clk 0:02:24.1]} 27...
b4 {[%clk 0:01:19]} 28. Qc1 {[%clk 0:02:23]} 28... Qxc1+ {[%clk 0:01:15.4]} 29.
Bxc1 {[%clk 0:02:22.3]} 29... Kg7 {[%clk 0:01:14.2]} 30. Bd3 {[%clk 0:02:12.9]}
30... Kf7 {[%clk 0:01:09.9]} 31. f3 {[%clk 0:02:11.8]} 31... Ke7 {[%clk
0:01:09.5]} 32. Bd2 {[%clk 0:02:08.8]} 32... Kd7 {[%clk 0:01:08.3]} 33. Kf2
{[%clk 0:02:08.3]} 33... Kc7 {[%clk 0:01:05.1]} 34. Be3 {[%clk 0:01:53.5]} 34...
Kb6 {[%clk 0:00:59.9]} 35. Bxd4+ {[%clk 0:01:53.2]} 35... exd4 {[%clk
0:01:00.8]} 36. Ke2 {[%clk 0:01:52.4]} 36... Kc5 {[%clk 0:00:45.8]} 37. Be4
{[%clk 0:01:51.5]} 37... Kb6 {[%clk 0:00:39.3]} 38. Kd3 {[%clk 0:01:50.4]} 38...
Kc5 {[%clk 0:00:38.8]} 39. f4 {[%clk 0:01:49.6]} 39... Bg7 {[%clk 0:00:31.2]}
40. g4 {[%clk 0:01:48]} 40... Bf6 {[%clk 0:00:21.7]} 41. g5 {[%clk 0:01:47.3]}
41... Bg7 {[%clk 0:00:20.5]} 42. h4 {[%clk 0:01:46.4]} 42... Kb6 {[%clk
0:00:17.7]} 43. h5 {[%clk 0:01:42.2]} 43... gxh5 {[%clk 0:00:16.8]} 44. Bxh7
{[%clk 0:01:41.6]} 44... h4 {[%clk 0:00:14.3]} 45. Bf5 {[%clk 0:01:40]} 45...
Kc7 {[%clk 0:00:14.4]} 46. Bh3 {[%clk 0:01:37.6]} 46... Kd8 {[%clk 0:00:14.6]}
47. f5 {[%clk 0:01:37.3]} 47... Be5 {[%clk 0:00:14.5]} 48. f6 {[%clk 0:01:36.3]}
48... Ke8 {[%clk 0:00:14.2]} 49. Ke4 {[%clk 0:01:34.9]} 49... Kf8 {[%clk
0:00:11.9]} 50. Bg4 {[%clk 0:01:32.1]} 50... Kg8 {[%clk 0:00:09.6]} 51. Kf5
{[%clk 0:01:30.4]} 51... d3 {[%clk 0:00:08.4]} 52. Ke4 {[%clk 0:01:26.8]} 52...
d2 {[%clk 0:00:08.4]} 53. Kd3 {[%clk 0:01:26.4]} 53... Bc3 {[%clk 0:00:08.4]}
54. Kc2 {[%clk 0:01:25.1]} 54... Kf7 {[%clk 0:00:07.5]} 55. Bh5+ {[%clk
0:01:23.9]} 55... Kf8 {[%clk 0:00:07.6]} 56. Bg4 {[%clk 0:01:23.7]} 56... Kf7
{[%clk 0:00:07.9]} 57. Bh5+ {[%clk 0:01:23.4]} 57... Kf8 {[%clk 0:00:08.1]} 58.
Bg4 {[%clk 0:01:22.9]} 58... Kf7 {[%clk 0:00:08.5]} 1/2-1/2

[Event "*** SCC Grand Prix: Titled Tuesday Blitz"]
[Site "Chess.com"]
[Date "2020.06.23"]
[Round "3"]
[White "czasnaszachy"]
[Black "PattyCastillo"]
[Result "1-0"]
[WhiteElo "2254"]
[BlackElo "1912"]
[TimeControl "180+1"]
[EndTime "10:28:30 PDT"]
[Termination "czasnaszachy won on time"]

1. d4 {[%clk 0:03:00.9]} 1... d5 {[%clk 0:02:56.1]} 2. c4 {[%clk 0:03:00.2]}
2... c6 {[%clk 0:02:55.8]} 3. Nc3 {[%clk 0:02:59.4]} 3... Nf6 {[%clk 0:02:54.6]}
4. Nf3 {[%clk 0:02:59.1]} 4... e6 {[%clk 0:02:54.4]} 5. Bg5 {[%clk 0:02:56.8]}
5... h6 {[%clk 0:02:53.5]} 6. Bh4 {[%clk 0:02:46.7]} 6... dxc4 {[%clk
0:02:50.2]} 7. e4 {[%clk 0:02:46.5]} 7... g5 {[%clk 0:02:49.9]} 8. Bg3 {[%clk
0:02:43.7]} 8... b5 {[%clk 0:02:48.8]} 9. a4 {[%clk 0:02:37.7]} 9... b4 {[%clk
0:02:23.1]} 10. Nb1 {[%clk 0:02:19.8]} 10... Nxe4 {[%clk 0:02:12.8]} 11. Bxc4
{[%clk 0:02:15.9]} 11... Bb7 {[%clk 0:02:00.2]} 12. O-O {[%clk 0:02:14.6]} 12...
c5 {[%clk 0:01:56.5]} 13. Bb5+ {[%clk 0:02:06.1]} 13... Nc6 {[%clk 0:01:39.6]}
14. Re1 {[%clk 0:01:59.6]} 14... Nxg3 {[%clk 0:01:37.7]} 15. hxg3 {[%clk
0:01:59.4]} 15... Be7 {[%clk 0:01:25.6]} 16. Ne5 {[%clk 0:01:50.2]} 16... Rc8
{[%clk 0:01:19.8]} 17. Qh5 {[%clk 0:01:43.9]} 17... O-O {[%clk 0:01:05.6]} 18.
Qxh6 {[%clk 0:01:11]} 18... Nxd4 {[%clk 0:00:58.9]} 19. Bd3 {[%clk 0:00:58.9]}
19... Nf5 {[%clk 0:00:32.1]} 20. Qh5 {[%clk 0:00:56.1]} 20... Bf6 {[%clk
0:00:20]} 21. Ng4 {[%clk 0:00:43.4]} 21... Bg7 {[%clk 0:00:19]} 22. Bc2 {[%clk
0:00:34.1]} 22... Qc7 {[%clk 0:00:13]} 23. Ne3 {[%clk 0:00:30]} 23... Qe5 {[%clk
0:00:07.9]} 24. Re2 {[%clk 0:00:19.6]} 24... Qf6 {[%clk 0:00:06.7]} 25. g4
{[%clk 0:00:16.5]} 25... Qh6 {[%clk 0:00:01.5]} 26. Bxf5 {[%clk 0:00:10.2]} 1-0

[Event "*** SCC Grand Prix: Titled Tuesday Blitz"]
[Site "Chess.com"]
[Date "2020.06.23"]
[Round "3"]
[White "kleinebeer98"]
[Black "Fandorine"]
[Result "1/2-1/2"]
[WhiteElo "2668"]
[BlackElo "2896"]
[TimeControl "180+1"]
[EndTime "10:28:32 PDT"]
[Termination "Game drawn by repetition"]

1. e4 {[%clk 0:03:00.9]} 1... e5 {[%clk 0:03:00.2]} 2. Nf3 {[%clk 0:02:59.7]}
2... Nc6 {[%clk 0:03:00.4]} 3. Nc3 {[%clk 0:03:00.2]} 3... Nf6 {[%clk
0:03:00.1]} 4. a3 {[%clk 0:03:00.8]} 4... d6 {[%clk 0:02:53.5]} 5. d4 {[%clk
0:03:00.5]} 5... exd4 {[%clk 0:02:53.6]} 6. Nxd4 {[%clk 0:03:01.4]} 6... Bd7
{[%clk 0:02:52.9]} 7. g3 {[%clk 0:03:01.3]} 7... g6 {[%clk 0:02:51.8]} 8. Bg2
{[%clk 0:03:01.6]} 8... Bg7 {[%clk 0:02:52.4]} 9. Nb3 {[%clk 0:02:58.4]} 9...
O-O {[%clk 0:02:52.7]} 10. O-O {[%clk 0:02:58.1]} 10... Re8 {[%clk 0:02:52.7]}
11. h3 {[%clk 0:02:53.7]} 11... a5 {[%clk 0:02:49.2]} 12. Be3 {[%clk 0:02:48.9]}
12... a4 {[%clk 0:02:19.2]} 13. Nd2 {[%clk 0:02:48.7]} 13... Qc8 {[%clk
0:02:19.8]} 14. Kh2 {[%clk 0:02:46.9]} 14... Ra5 {[%clk 0:02:20.4]} 15. Nd5
{[%clk 0:02:37.3]} 15... Nxd5 {[%clk 0:02:14.2]} 16. exd5 {[%clk 0:02:38.2]}
16... Ne7 {[%clk 0:02:07.6]} 17. Nc4 {[%clk 0:02:30.1]} 17... Ra8 {[%clk
0:02:07.1]} 18. Bd4 {[%clk 0:02:27.6]} 18... Bb5 {[%clk 0:02:03.3]} 19. Bxg7
{[%clk 0:02:22.7]} 19... Kxg7 {[%clk 0:02:03.6]} 20. Re1 {[%clk 0:02:13]} 20...
Qf5 {[%clk 0:01:43.5]} 21. Qd2 {[%clk 0:02:04.6]} 21... Bxc4 {[%clk 0:01:18]}
22. Qc3+ {[%clk 0:02:04.5]} 22... Qf6 {[%clk 0:01:18.1]} 23. Qxc4 {[%clk
0:02:04.4]} 23... Rac8 {[%clk 0:01:03.3]} 24. Qxa4 {[%clk 0:01:55.4]} 24... Red8
{[%clk 0:00:23.9]} 25. c3 {[%clk 0:01:47.3]} 25... h5 {[%clk 0:00:23]} 26. h4
{[%clk 0:01:46.8]} 26... Ng8 {[%clk 0:00:12.8]} 27. Re2 {[%clk 0:01:41.9]} 27...
Nh6 {[%clk 0:00:11.9]} 28. Bh3 {[%clk 0:01:42.2]} 28... Re8 {[%clk 0:00:08.7]}
29. Rxe8 {[%clk 0:01:19.8]} 29... Rxe8 {[%clk 0:00:06]} 30. Qxe8 {[%clk
0:01:19]} 30... Qxf2+ {[%clk 0:00:06.4]} 31. Kh1 {[%clk 0:01:19.4]} 31... Qxg3
{[%clk 0:00:05]} 32. Qd7 {[%clk 0:01:08.4]} 32... Ng4 {[%clk 0:00:02.8]} 33.
Bxg4 {[%clk 0:01:07.6]} 33... hxg4 {[%clk 0:00:03.3]} 34. Qe7 {[%clk 0:00:47.2]}
34... Qh3+ {[%clk 0:00:03.5]} 35. Kg1 {[%clk 0:00:47.4]} 35... Qg3+ {[%clk
0:00:04.1]} 36. Kf1 {[%clk 0:00:39.9]} 36... Qf3+ {[%clk 0:00:04.4]} 37. Kg1
{[%clk 0:00:38.1]} 37... Qg3+ {[%clk 0:00:04.5]} 38. Kh1 {[%clk 0:00:37.7]}
38... Qh3+ {[%clk 0:00:04.7]} 39. Kg1 {[%clk 0:00:38.1]} 39... Qg3+ {[%clk
0:00:05.2]} 1/2-1/2

[Event "*** SCC Grand Prix: Titled Tuesday Blitz"]
[Site "Chess.com"]
[Date "2020.06.23"]
[Round "3"]
[White "Carolina-moon"]
[Black "AlphaZ3r0"]
[Result "1-0"]
[WhiteElo "2042"]
[BlackElo "2282"]
[TimeControl "180+1"]
[EndTime "10:28:32 PDT"]
[Termination "Carolina-moon won by resignation"]

1. Nc3 {[%clk 0:02:58.7]} 1... d5 {[%clk 0:02:59.2]} 2. e4 {[%clk 0:02:57.8]}
2... dxe4 {[%clk 0:02:46.8]} 3. Nxe4 {[%clk 0:02:57]} 3... Bf5 {[%clk
0:02:46.6]} 4. Ng3 {[%clk 0:02:52.9]} 4... Bg6 {[%clk 0:02:41.2]} 5. d4 {[%clk
0:02:52.8]} 5... Nf6 {[%clk 0:02:39.6]} 6. Nf3 {[%clk 0:02:52.3]} 6... e6 {[%clk
0:02:39.2]} 7. h4 {[%clk 0:02:52]} 7... h6 {[%clk 0:02:36.3]} 8. h5 {[%clk
0:02:50.3]} 8... Bh7 {[%clk 0:02:35.5]} 9. Bd3 {[%clk 0:02:46.2]} 9... Bxd3
{[%clk 0:02:33.7]} 10. Qxd3 {[%clk 0:02:47.1]} 10... c6 {[%clk 0:02:27.9]} 11.
Bd2 {[%clk 0:02:45]} 11... Bd6 {[%clk 0:02:27.3]} 12. Ne4 {[%clk 0:02:43.3]}
12... Nxe4 {[%clk 0:02:26.3]} 13. Qxe4 {[%clk 0:02:43.7]} 13... Nd7 {[%clk
0:02:24.7]} 14. O-O-O {[%clk 0:02:43]} 14... Nf6 {[%clk 0:02:21.1]} 15. Qe2
{[%clk 0:02:42.4]} 15... b5 {[%clk 0:02:18.4]} 16. Ne5 {[%clk 0:02:10.3]} 16...
Qb6 {[%clk 0:02:07.8]} 17. Qf3 {[%clk 0:01:25]} 17... Rc8 {[%clk 0:01:52.2]} 18.
Rhe1 {[%clk 0:00:58.9]} 18... a5 {[%clk 0:01:17.5]} 19. g4 {[%clk 0:00:46.4]}
19... a4 {[%clk 0:01:10.3]} 20. g5 {[%clk 0:00:42.7]} 20... hxg5 {[%clk
0:01:00.7]} 21. Bxg5 {[%clk 0:00:42.7]} 21... a3 {[%clk 0:00:57.5]} 22. Bxf6
{[%clk 0:00:24.2]} 22... axb2+ {[%clk 0:00:46.6]} 23. Kb1 {[%clk 0:00:24.2]}
23... gxf6 {[%clk 0:00:40.2]} 24. Qxf6 {[%clk 0:00:23.6]} 24... Rf8 {[%clk
0:00:30.2]} 25. Nxf7 {[%clk 0:00:20.3]} 25... Be7 {[%clk 0:00:18.3]} 26. Qxe6
{[%clk 0:00:15.1]} 26... Qc7 {[%clk 0:00:13.5]} 27. Nd6+ {[%clk 0:00:12.4]}
27... Kd8 {[%clk 0:00:13.4]} 28. Nxc8 {[%clk 0:00:11.7]} 1-0

[Event "*** SCC Grand Prix: Titled Tuesday Blitz"]
[Site "Chess.com"]
[Date "2020.06.23"]
[Round "3"]
[White "verdest"]
[Black "Chernov_Mikhail"]
[Result "1-0"]
[WhiteElo "2549"]
[BlackElo "2354"]
[TimeControl "180+1"]
[EndTime "10:28:33 PDT"]
[Termination "verdest won by resignation"]

1. d4 {[%clk 0:03:00.9]} 1... d5 {[%clk 0:02:59.5]} 2. c4 {[%clk 0:03:00.3]}
2... Nc6 {[%clk 0:02:59.9]} 3. Nf3 {[%clk 0:02:59.3]} 3... Bg4 {[%clk
0:02:59.6]} 4. Nc3 {[%clk 0:02:58.9]} 4... e6 {[%clk 0:02:59.7]} 5. e3 {[%clk
0:02:44.3]} 5... Bb4 {[%clk 0:02:59]} 6. Bd2 {[%clk 0:02:42.8]} 6... Nf6 {[%clk
0:02:58.6]} 7. Bd3 {[%clk 0:02:37.2]} 7... O-O {[%clk 0:02:58.3]} 8. O-O {[%clk
0:02:34.3]} 8... Bxc3 {[%clk 0:02:58.7]} 9. Bxc3 {[%clk 0:02:32.5]} 9... Ne4
{[%clk 0:02:59.2]} 10. h3 {[%clk 0:02:25.8]} 10... Bh5 {[%clk 0:02:55.8]} 11.
Rc1 {[%clk 0:02:15.9]} 11... Ne7 {[%clk 0:02:27.1]} 12. Bb4 {[%clk 0:02:10.1]}
12... c6 {[%clk 0:02:23.4]} 13. Be2 {[%clk 0:01:58.6]} 13... f5 {[%clk
0:01:58.1]} 14. Ne5 {[%clk 0:01:53.3]} 14... Bxe2 {[%clk 0:01:59]} 15. Qxe2
{[%clk 0:01:54.2]} 15... a5 {[%clk 0:01:54.5]} 16. Ba3 {[%clk 0:01:51.8]} 16...
Rf6 {[%clk 0:01:48.4]} 17. Rfd1 {[%clk 0:01:27.3]} 17... Ng6 {[%clk 0:01:29.1]}
18. Nd3 {[%clk 0:01:02.9]} 18... f4 {[%clk 0:00:46.3]} 19. f3 {[%clk 0:00:51.4]}
19... Ng3 {[%clk 0:00:42.1]} 20. Qe1 {[%clk 0:00:44.2]} 20... Qc7 {[%clk
0:00:31.1]} 21. Kh2 {[%clk 0:00:28.6]} 21... h5 {[%clk 0:00:18.3]} 22. exf4
{[%clk 0:00:25.4]} 22... Nxf4 {[%clk 0:00:18.4]} 23. Nxf4 {[%clk 0:00:18.9]}
23... Rxf4 {[%clk 0:00:16.7]} 24. Qxe6+ {[%clk 0:00:08.6]} 24... Kh8 {[%clk
0:00:15.3]} 25. Bd6 {[%clk 0:00:08.2]} 1-0

[Event "*** SCC Grand Prix: Titled Tuesday Blitz"]
[Site "Chess.com"]
[Date "2020.06.23"]
[Round "3"]
[White "cholzan"]
[Black "AwareIdea"]
[Result "1/2-1/2"]
[WhiteElo "2333"]
[BlackElo "2518"]
[TimeControl "180+1"]
[EndTime "10:28:33 PDT"]
[Termination "Game drawn by repetition"]

1. d4 {[%clk 0:03:00.9]} 1... d5 {[%clk 0:02:59.5]} 2. c4 {[%clk 0:02:59.4]}
2... e6 {[%clk 0:02:59.3]} 3. Nf3 {[%clk 0:02:59.3]} 3... Nf6 {[%clk 0:02:59.2]}
4. g3 {[%clk 0:02:59.6]} 4... dxc4 {[%clk 0:02:58.3]} 5. a4 {[%clk 0:02:58.3]}
5... c5 {[%clk 0:02:48.7]} 6. Bg2 {[%clk 0:02:56.2]} 6... Nc6 {[%clk 0:02:48.4]}
7. O-O {[%clk 0:02:47.9]} 7... cxd4 {[%clk 0:02:36.8]} 8. Nbd2 {[%clk
0:02:47.8]} 8... Na5 {[%clk 0:02:24.1]} 9. Qc2 {[%clk 0:02:31]} 9... d3 {[%clk
0:02:02.5]} 10. exd3 {[%clk 0:02:31.9]} 10... Qxd3 {[%clk 0:02:02.7]} 11. Qxd3
{[%clk 0:02:30.3]} 11... cxd3 {[%clk 0:02:03.6]} 12. Ne5 {[%clk 0:02:30.4]}
12... Bb4 {[%clk 0:01:57.5]} 13. Nxd3 {[%clk 0:02:29.5]} 13... Bxd2 {[%clk
0:01:55]} 14. Bxd2 {[%clk 0:02:30.4]} 14... Nb3 {[%clk 0:01:55.6]} 15. Rad1
{[%clk 0:02:15.9]} 15... Nxd2 {[%clk 0:01:54.5]} 16. Rxd2 {[%clk 0:02:16.8]}
16... Ke7 {[%clk 0:01:55.4]} 17. Rc1 {[%clk 0:02:16.4]} 17... Rd8 {[%clk
0:01:50.2]} 18. Rc7+ {[%clk 0:02:09.9]} 18... Rd7 {[%clk 0:01:50.1]} 19. Rdc2
{[%clk 0:02:07.1]} 19... Kd8 {[%clk 0:01:25.9]} 20. Rxd7+ {[%clk 0:01:55.6]}
20... Nxd7 {[%clk 0:01:23.4]} 21. a5 {[%clk 0:01:46.5]} 21... Rb8 {[%clk
0:01:22.7]} 22. Nb4 {[%clk 0:01:37.9]} 22... Ne5 {[%clk 0:01:04.3]} 23. f4
{[%clk 0:01:31]} 23... Ng6 {[%clk 0:00:49.4]} 24. Nd3 {[%clk 0:01:07.2]} 24...
b6 {[%clk 0:00:43.7]} 25. Nb4 {[%clk 0:01:04.8]} 25... Bd7 {[%clk 0:00:37.4]}
26. a6 {[%clk 0:01:01.9]} 26... Ne7 {[%clk 0:00:30]} 27. Bb7 {[%clk 0:00:59.3]}
27... Bc8 {[%clk 0:00:20.6]} 28. Be4 {[%clk 0:00:38.5]} 28... Bd7 {[%clk
0:00:20.4]} 29. Bb7 {[%clk 0:00:29.4]} 29... Bc8 {[%clk 0:00:20.1]} 30. Rd2+
{[%clk 0:00:23.9]} 30... Kc7 {[%clk 0:00:17.6]} 31. Be4 {[%clk 0:00:19.9]} 31...
Bd7 {[%clk 0:00:17.7]} 32. Rc2+ {[%clk 0:00:19.4]} 32... Kd8 {[%clk 0:00:17.6]}
33. Bb7 {[%clk 0:00:19]} 1/2-1/2

[Event "*** SCC Grand Prix: Titled Tuesday Blitz"]
[Site "Chess.com"]
[Date "2020.06.23"]
[Round "3"]
[White "VMikhalevski"]
[Black "Artyom_ChessMate"]
[Result "1-0"]
[WhiteElo "2780"]
[BlackElo "2515"]
[TimeControl "180+1"]
[EndTime "10:28:39 PDT"]
[Termination "VMikhalevski won by resignation"]

1. Nf3 {[%clk 0:03:00.9]} 1... d5 {[%clk 0:02:58.6]} 2. g3 {[%clk 0:03:00.9]}
2... Nf6 {[%clk 0:02:58.7]} 3. Bg2 {[%clk 0:03:01]} 3... e6 {[%clk 0:02:59.3]}
4. O-O {[%clk 0:03:00.5]} 4... Be7 {[%clk 0:02:59.8]} 5. c4 {[%clk 0:03:00.3]}
5... O-O {[%clk 0:03:00]} 6. b3 {[%clk 0:03:00.1]} 6... b6 {[%clk 0:03:00]} 7.
cxd5 {[%clk 0:02:55.6]} 7... Nxd5 {[%clk 0:03:00.9]} 8. Bb2 {[%clk 0:02:52.4]}
8... Bb7 {[%clk 0:02:58.9]} 9. d4 {[%clk 0:02:47.6]} 9... Nd7 {[%clk 0:02:57.7]}
10. Nbd2 {[%clk 0:02:45.7]} 10... N5f6 {[%clk 0:02:54.9]} 11. Re1 {[%clk
0:02:34.4]} 11... c5 {[%clk 0:02:53.6]} 12. e4 {[%clk 0:02:34.5]} 12... Rc8
{[%clk 0:02:46.1]} 13. Qe2 {[%clk 0:02:32.5]} 13... cxd4 {[%clk 0:02:44.5]} 14.
Nxd4 {[%clk 0:02:31.9]} 14... e5 {[%clk 0:02:45]} 15. Nf5 {[%clk 0:02:29.4]}
15... Rc2 {[%clk 0:02:45]} 16. Bc1 {[%clk 0:01:54.3]} 16... Nc5 {[%clk
0:01:44.2]} 17. Ne3 {[%clk 0:01:23.7]} 17... Ba6 {[%clk 0:01:08.6]} 18. Qd1
{[%clk 0:01:14.6]} 18... Rc3 {[%clk 0:01:07.3]} 19. Bb2 {[%clk 0:00:48.1]} 19...
Rd3 {[%clk 0:01:05]} 20. Nd5 {[%clk 0:00:47.6]} 20... Nxd5 {[%clk 0:00:55.7]}
21. exd5 {[%clk 0:00:47.3]} 21... Bg5 {[%clk 0:00:54.4]} 22. Re2 {[%clk
0:00:38.6]} 22... Re8 {[%clk 0:00:46.8]} 23. Qe1 {[%clk 0:00:33]} 23... Bxd2
{[%clk 0:00:33.1]} 24. Rxd2 {[%clk 0:00:32.1]} 24... Rxd2 {[%clk 0:00:34]} 25.
Qxd2 {[%clk 0:00:32.1]} 25... e4 {[%clk 0:00:34.1]} 26. Qd4 {[%clk 0:00:30.3]}
26... f6 {[%clk 0:00:33.7]} 27. Rd1 {[%clk 0:00:26.9]} 27... Qd6 {[%clk
0:00:32.4]} 28. Ba3 {[%clk 0:00:25.4]} 28... Bd3 {[%clk 0:00:15.3]} 29. Re1
{[%clk 0:00:21.2]} 29... Rd8 {[%clk 0:00:13.5]} 30. Bxe4 {[%clk 0:00:19.3]}
30... Bxe4 {[%clk 0:00:11.5]} 31. Rxe4 {[%clk 0:00:19.4]} 31... Qxd5 {[%clk
0:00:07.2]} 32. Re8+ {[%clk 0:00:18.6]} 32... Kf7 {[%clk 0:00:07.4]} 33. Rxd8
{[%clk 0:00:18.5]} 1-0

[Event "*** SCC Grand Prix: Titled Tuesday Blitz"]
[Site "Chess.com"]
[Date "2020.06.23"]
[Round "3"]
[White "Zkid"]
[Black "Konavets"]
[Result "1-0"]
[WhiteElo "2723"]
[BlackElo "3006"]
[TimeControl "180+1"]
[EndTime "10:28:41 PDT"]
[Termination "Zkid won by resignation"]

1. e4 {[%clk 0:02:51.8]} 1... c6 {[%clk 0:02:58.6]} 2. d4 {[%clk 0:02:51.5]}
2... d5 {[%clk 0:02:58.9]} 3. exd5 {[%clk 0:02:46.5]} 3... cxd5 {[%clk
0:02:59.8]} 4. Bd3 {[%clk 0:02:46.2]} 4... Qc7 {[%clk 0:02:57.7]} 5. Ne2 {[%clk
0:02:44.1]} 5... Nc6 {[%clk 0:02:57.3]} 6. c3 {[%clk 0:02:43.9]} 6... Bg4 {[%clk
0:02:55.4]} 7. O-O {[%clk 0:02:42.9]} 7... e6 {[%clk 0:02:55]} 8. Qe1 {[%clk
0:02:43.1]} 8... Bd6 {[%clk 0:02:47.6]} 9. f3 {[%clk 0:02:42.6]} 9... Bh5 {[%clk
0:02:48]} 10. Qh4 {[%clk 0:02:42.4]} 10... Bg6 {[%clk 0:02:48.6]} 11. Bxg6
{[%clk 0:02:42.2]} 11... fxg6 {[%clk 0:02:49.5]} 12. Qh3 {[%clk 0:02:41.2]}
12... Kf7 {[%clk 0:02:47.9]} 13. Re1 {[%clk 0:02:36.9]} 13... Re8 {[%clk
0:02:45.3]} 14. Nd2 {[%clk 0:02:28.4]} 14... Nf6 {[%clk 0:02:36.6]} 15. f4
{[%clk 0:02:25.1]} 15... Rhf8 {[%clk 0:02:28.9]} 16. Nf3 {[%clk 0:02:24.4]}
16... Kg8 {[%clk 0:02:29.2]} 17. Ng3 {[%clk 0:02:18.5]} 17... Bxf4 {[%clk
0:02:20.7]} 18. Bxf4 {[%clk 0:02:18]} 18... Qxf4 {[%clk 0:02:19.5]} 19. Rxe6
{[%clk 0:02:18.3]} 19... Ng4 {[%clk 0:02:19.9]} 20. Rae1 {[%clk 0:02:07.8]}
20... Rxe6 {[%clk 0:01:54.4]} 21. Rxe6 {[%clk 0:02:08.7]} 21... h5 {[%clk
0:01:01.4]} 22. Nf1 {[%clk 0:01:54.6]} 22... Qc1 {[%clk 0:00:53.1]} 23. Rxg6
{[%clk 0:01:26.8]} 23... Qxb2 {[%clk 0:00:51.6]} 24. Qh4 {[%clk 0:01:24.1]}
24... Qxc3 {[%clk 0:00:37.6]} 25. Qxh5 {[%clk 0:01:15.6]} 25... Nf6 {[%clk
0:00:34.1]} 26. Qg5 {[%clk 0:00:58.4]} 26... Rf7 {[%clk 0:00:34.4]} 27. Qe3
{[%clk 0:00:53.6]} 27... Qb4 {[%clk 0:00:21.7]} 28. h3 {[%clk 0:00:45.8]} 28...
Qe7 {[%clk 0:00:18.7]} 29. Qb3 {[%clk 0:00:37.6]} 29... Qe2 {[%clk 0:00:14.4]}
30. Ng3 {[%clk 0:00:34.3]} 30... Qe6 {[%clk 0:00:12.6]} 31. Kh2 {[%clk
0:00:28.6]} 31... Rd7 {[%clk 0:00:09.7]} 32. Rg5 {[%clk 0:00:25.4]} 32... Re7
{[%clk 0:00:07.3]} 33. Nf5 {[%clk 0:00:25]} 33... Rd7 {[%clk 0:00:07.8]} 34.
N3h4 {[%clk 0:00:19]} 34... Ne4 {[%clk 0:00:07.2]} 35. Rg6 {[%clk 0:00:19.1]}
35... Qe8 {[%clk 0:00:07.4]} 36. Qf3 {[%clk 0:00:18.3]} 36... Qb8+ {[%clk
0:00:06.9]} 37. Kg1 {[%clk 0:00:18.4]} 37... Qf8 {[%clk 0:00:05.2]} 38. Nh6+
{[%clk 0:00:18.2]} 38... Kh7 {[%clk 0:00:04.1]} 39. Qxf8 {[%clk 0:00:18.6]} 1-0